fUSD/lending_fUSD_20240122
["ID","MTS","AMOUNT","RATE_DAILY","PERIOD"]
[312533025,1705947045873,-1271.24880687,0.0003888,2]
[312533027,1705947045884,-27652.7152,0.0003888,2]
[312533029,1705947045899,-20000.0,0.0003888,2]
[312533030,1705947045911,-1247.62926248,0.0003888,2]
[312533031,1705947045937,532.69358857,0.00018398,2]
[312533032,1705947045950,-1136.31970679,0.0003888,2]
[312533033,1705947045961,-4058.40135887,0.0003888,2]
[312533034,1705947045971,-1149.90446114,0.0003888,2]
[312533035,1705947045984,-495.86931459,0.0003888,2]
[312533036,1705947045996,-3090.32308473,0.0003888,2]
[312533037,1705947046007,-3056.9,0.0003888,2]
[312533038,1705947046018,-47573.31747455,0.0003888,2]
[312533039,1705947046027,-55366.31433501,0.0003888,2]
[312533040,1705947046037,-55366.31433501,0.0003888,2]
[312533041,1705947046047,-4492.3959567,0.0003888,2]
[312533042,1705947046057,-122494.9900484,0.00038893,2]
[312533043,1705947046067,-5106.5000637,0.00038893,2]
[312533044,1705947046076,-702.394035,0.000389,28]
[312533045,1705947046085,-275.5,0.000389,2]
[312533046,1705947046094,-3275.8953429,0.00038907,2]
[312533047,1705947046104,-153.5304963,0.00038934,2]
[312533048,1705947046113,-159.44940565,0.00038947,2]
[312533049,1705947046122,-150.0,0.00038947,2]
[312533050,1705947046131,-381.68883309,0.00038948,3]
[312533051,1705947046142,-283.40650586,0.00038948,2]
[312533052,1705947046151,-5052.44361428,0.00038948,4]
[312533053,1705947046160,-1213.78820212,0.00038948,4]
[312533054,1705947046169,-750.0,0.00038948,30]
[312533055,1705947046179,-1331.10990813,0.00038948,10]
[312533056,1705947046188,-4413.33184674,0.00038948,4]
[312533057,1705947046197,-40757.68165697,0.00038948,4]
[312533058,1705947046207,-440.79158364,0.00038948,31]
[312533059,1705947046217,-208.81694827,0.00038948,2]
[312533060,1705947046226,-4787.16466736,0.00038948,2]
[312533061,1705947046235,-172.67563037,0.00038948,2]
[312533062,1705947046245,-998.56683117,0.00038948,2]
[312533063,1705947046253,-160.49508901,0.00038948,2]
[312533064,1705947046263,-8823.31404508,0.00038948,2]
[312533065,1705947046272,-1252.97729753,0.00038948,2]
[312533066,1705947046282,-4723.80253971,0.00038948,2]
[312533067,1705947046291,-6720.88777977,0.00038948,2]
[312533068,1705947046301,-21687.84393326,0.00038948,2]
[312533069,1705947046310,-12265.11138914,0.00038948,2]
[312533070,1705947046319,-1836.20947637,0.00038948,2]
[312533071,1705947046329,-643.0,0.00038948,2]
[312533072,1705947046339,-927.10263298,0.00038948,2]
[312533073,1705947046348,-8403.01766615,0.00038948,2]
[312533074,1705947046358,-29461.29870522,0.00038948,2]
[312533075,1705947046367,-547.5976413,0.00038948,2]
[312533076,1705947046376,-762.99071118,0.00038948,2]
[312533077,1705947046386,-226.85877639,0.00038948,2]
[312533078,1705947046396,-199.0993646,0.00038948,2]
[312533079,1705947046405,-52050.75034262,0.00038948,2]
[312533080,1705947046416,-8784.46269172,0.00038948,2]
[312533081,1705947046425,-550.0,0.00038948,2]
[312533082,1705947046434,-998.84936158,0.00038948,2]
[312533083,1705947046443,-10236.61783804,0.00038948,2]
[312533084,1705947046454,-73166.61624821,0.00038948,2]
[312533085,1705947046822,-2547.5,0.00038948,2]
[312533086,1705947046835,-735.9234,0.00038948,2]
[312533087,1705947046846,-1660.0,0.00038948,2]
[312533088,1705947046857,-503.5,0.00038948,2]
[312533089,1705947046868,-842.0,0.00038948,2]
[312533090,1705947046881,-5617.7333,0.00038948,2]
[312533091,1705947049398,155.0,0.00018398,2]
[312533092,1705947050022,1262.0019873,0.00018398,5]
[312533093,1705947050182,156.86047358,0.00018398,2]
[312533094,1705947051971,857.29441409,0.00018398,2]
[312533095,1705947052610,220.3915271,0.00018398,2]
[312533096,1705947055032,283.34219518,0.00018398,2]
[312533097,1705947056467,885.62248904,0.00018398,2]
[312533098,1705947057945,155.0,0.00018398,2]
[312533099,1705947126203,157.24346844,0.00018398,2]
[312533100,1705947128577,220.3915271,0.00018398,2]
[312533101,1705947139678,532.88645622,0.00018398,2]
[312533102,1705947146574,220.3915271,0.00018398,2]
[312533103,1705947159585,301.7454946,0.00018398,2]
[312533104,1705947162577,220.3915271,0.00018398,2]
[312533105,1705947180589,220.3915271,0.00018398,2]
[312533106,1705947208585,221.11062984,0.00018398,2]
[312533108,1705947423750,847.35764479,0.0002,2]
[312533109,1705947430908,227.4835682,0.0002,2]
[312533110,1705947446015,500.0,0.0002,2]
[312533111,1705947447741,847.35764479,0.0002,2]
[312533112,1705947463998,500.0,0.0002,2]
[312533113,1705947464642,533.75788513,0.0002,2]
[312533114,1705947469743,279.5315692,0.0002,2]
[312533115,1705947476615,533.34871057,0.0002,2]
[312533116,1705947483944,293.40631255,0.0002,2]
[312533117,1705947503788,8353.654265,0.00020937,2]
[312535245,1705947597950,2181.29193254,0.00020728,2]
[312535246,1705947611932,2185.76219735,0.00020728,2]
[312535268,1705947650224,152.26973693,0.00020938,2]
[312535270,1705947668085,857.29441409,0.00020728,2]
[312535271,1705947670536,155.0,0.00020728,2]
[312535272,1705947673661,532.69358857,0.00020728,2]
[312535273,1705947676256,361.34078725,0.00020728,2]
[312535274,1705947676719,155.0,0.00020728,2]
[312535275,1705947678476,5194.03576086,0.00020728,2]
[312535276,1705947678644,292.2694921,0.00020728,2]
[312535277,1705947679250,18976.97972243,0.00020728,2]
[312535278,1705947680501,155.0,0.00020728,2]
[312535279,1705947682517,885.62248904,0.00020728,2]
[312535280,1705947684086,856.10256511,0.00020728,2]
[312535281,1705947689354,155.0,0.00020728,2]
[312535282,1705947692375,1894.97702682,0.00020728,2]
[312535283,1705947692530,155.0,0.00020728,2]
[312535284,1705947695656,531.90976537,0.00020728,2]
[312535285,1705947696249,361.34078725,0.00020728,2]
[312535286,1705947696502,155.0,0.00020728,2]
[312535287,1705947696701,155.24335567,0.00020728,2]
[312535288,1705947698711,884.33042664,0.00020728,2]
[312535289,1705947698768,292.2694921,0.00020728,2]
[312535290,1705947706508,1033.92055253,0.00020728,2]
[312535291,1705947709620,155.20448562,0.00020728,2]
[312535292,1705947709733,532.30167697,0.00020728,2]
[312535293,1705947712369,1894.97702682,0.00020728,2]
[312535294,1705947712463,2930.40625267,0.00020728,2]
[312535295,1705947712676,533.37470322,0.00020728,2]
[312535296,1705947712828,155.0,0.00020728,2]
[312535297,1705947714308,361.34078725,0.00020728,2]
[312535298,1705947720247,18949.79193109,0.00020728,2]
[312535299,1705947720646,292.2694921,0.00020728,2]
[312535300,1705947725367,155.0,0.00020728,2]
[312535301,1705947726516,155.0,0.00020728,2]
[312535302,1705947726651,884.97645784,0.00020728,2]
[312535303,1705947728496,1033.92055253,0.00020728,2]
[312535304,1705947730643,533.37470322,0.00020728,2]
[312535305,1705947730812,155.0,0.00020728,2]
[312535306,1705947732536,155.0,0.00020728,2]
[312535307,1705947734249,361.34078725,0.00020728,2]
[312535308,1705947744498,242.88431625,0.00020728,2]
[312535309,1705947744650,296.20737674,0.00020728,2]
[312535310,1705947746472,857.29441409,0.00020728,2]
[312535311,1705947746680,1894.97702682,0.00020728,2]
[312535312,1705947746838,533.37470322,0.00020728,2]
[312535313,1705947747353,263.23464751,0.00020728,2]
[312535314,1705947748553,189.44894637,0.00020728,2]
[312535315,1705947749659,532.30167697,0.00020728,2]
[312535316,1705947750500,1033.92055253,0.00020728,2]
[312535317,1705947750565,884.97645784,0.00020728,2]
[312535318,1705947752876,18976.97972243,0.00020728,2]
[312535319,1705947764091,857.29441409,0.00020728,2]
[312535320,1705947764374,1894.97702682,0.00020728,2]
[312535321,1705947764706,533.37470322,0.00020728,2]
[312535322,1705947766255,361.34078725,0.00020728,2]
[312535323,1705947767668,532.50464613,0.00020728,2]
[312535324,1705947768539,885.29825043,0.00020728,2]
[312535325,1705947768764,18976.97972243,0.00020728,2]
[312535326,1705947772498,1033.92055253,0.00020728,2]
[312535327,1705947780659,533.37470322,0.00020728,2]
[312535328,1705947782800,1894.97702682,0.00020728,2]
[312535329,1705947784257,361.34078725,0.00020728,2]
[312535330,1705947785696,527.77981899,0.00020728,2]
[312535331,1705947786095,857.29441409,0.00020728,2]
[312535332,1705947786541,884.65466525,0.00020728,2]
[312535333,1705947789346,18976.97972243,0.00020728,2]
[312535334,1705947792499,1033.92055253,0.00020728,2]
[312535335,1705947800088,857.29441409,0.00020728,2]
[312535336,1705947800298,361.34078725,0.00020728,2]
[312535337,1705947800396,1894.97702682,0.00020728,2]
[312535338,1705947803959,18976.97972243,0.00020728,2]
[312535339,1705947808548,885.62248904,0.00020728,2]
[312535340,1705947814655,533.37470322,0.00020728,2]
[312535341,1705947816141,855.23286859,0.00020728,2]
[312535342,1705947820259,361.34078725,0.00020728,2]
[312535343,1705947822396,278.97787369,0.00020728,2]
[312535344,1705947827783,18976.97972243,0.00020728,2]
[312535345,1705947828511,592.34580771,0.00020728,2]
[312535346,1705947830551,460.66668666,0.00020728,2]
[312535347,1705947830666,533.37470322,0.00020728,2]
[312535348,1705947834109,855.78041265,0.00020728,2]
[312535349,1705947838265,439.75588994,0.00020728,2]
[312535350,1705947848272,18807.34565612,0.00020728,2]
[312535351,1705947852771,533.37470322,0.00020728,2]
[312535352,1705947872698,531.49232082,0.00020728,2]
[312535353,1705948015271,209.88,0.00020153,2]
[312535354,1705948039085,-155.55426514,0.00021017,2]
[312535356,1705948161494,-156.00443668,0.00021013,2]
[312535357,1705948167083,-458.08995678,0.00021012,2]
[312535358,1705948167103,-15.59886193,0.00021013,2]
[312535359,1705948167149,-1342.90042937,0.00021013,2]
[312535399,1705948234754,-2065.45835351,0.00021012,2]
[312535400,1705948234774,-439.75607358,0.00021012,2]
[312535401,1705948234784,-300.0,0.00021268,2]
[312535402,1705948234793,-458.08995678,0.00021527,2]
[312535403,1705948234802,-171.60329861,0.00021527,2]
[312535404,1705948234811,-3540.90144229,0.00021528,2]
[312535405,1705948234823,-678.38466293,0.00021528,2]
[312535406,1705948234834,-668.952,0.00021528,2]
[312535407,1705948234867,-2177.5,0.00021528,2]
[312535408,1705948234881,-815.6374002,0.00021528,2]
[312535409,1705948234907,-338.9958,0.00021528,2]
[312535410,1705948234922,-422.93054561,0.00021528,2]
[312535411,1705948234934,-2055.44954774,0.00021528,2]
[312535412,1705948234945,-2694.20860123,0.00021528,2]
[312535418,1705948235263,-4373.60948376,0.0002175,2]
[312535419,1705948235371,-222.17737652,0.00021751,2]
[312535420,1705948235385,-1999.72062348,0.00021751,2]
[312535421,1705948235396,-3986.23,0.00021786,2]
[312535422,1705948235407,-250.0,0.00021837,2]
[312535423,1705948235416,-646.47,0.00021871,2]
[312535424,1705948235426,-500.0,0.00021898,2]
[312535425,1705948235436,-250.0,0.00021918,2]
[312535426,1705948235445,-151.55,0.0002195,2]
[312535427,1705948235455,-3190.67771766,0.0002198,2]
[312535428,1705948235465,-151.55,0.00022013,2]
[312535429,1705948235475,-611.64792884,0.00022033,2]
[312535430,1705948235500,-171.30207116,0.00022033,2]
[312535431,1705948235510,-151.55,0.00022077,2]
[312535432,1705948235519,-302.60915598,0.00022103,2]
[312535433,1705948235532,-1697.39084402,0.00022103,2]
[312535434,1705948235542,-151.55,0.0002214,2]
[312535435,1705948235551,-151.55,0.00022204,2]
[312535436,1705948235561,-151.55,0.00022267,2]
[312535437,1705948235571,-661.45,0.00022319,2]
[312535438,1705948235580,-151.55,0.00022331,2]
[312535439,1705948235590,-151.55,0.00022394,2]
[312535440,1705948235600,-209.88,0.00022417,2]
[312535441,1705948235614,-151.55,0.00022458,2]
[312535442,1705948235624,-692.19851741,0.000225,2]
[312535443,1705948235634,-151.55,0.00022521,2]
[312535444,1705948235644,-163.94,0.00022521,2]
[312535445,1705948235654,-151.55,0.00022585,2]
[312535446,1705948235665,-151.55,0.00022648,2]
[312535447,1705948235674,-2756.10365545,0.00022667,2]
[312535448,1705948235688,-992.51668362,0.00022667,2]
[312535449,1705948235706,-819.29871517,0.00022667,2]
[312535450,1705948235722,-662.945,0.00022667,2]
[312535451,1705948235736,-5109.97328019,0.00022667,2]
[312535452,1705948235746,-472.26,0.00022707,2]
[312535453,1705948235756,-151.55,0.00022712,2]
[312535454,1705948235766,-4537.35,0.0002274,2]
[312535455,1705948235776,-151.55,0.00022776,2]
[312535456,1705948235787,-7.3167198,0.00022798,2]
[312535457,1705948235800,-4816.4558802,0.00022798,2]
[312535458,1705948235811,-1000.0,0.00022798,2]
[312535459,1705948235821,-499.99,0.00022798,2]
[312535460,1705948235831,-4735.5545,0.00022798,2]
[312535461,1705948235841,-296.68394195,0.00022828,2]
[312535462,1705948235851,-151.55,0.00022839,2]
[312535463,1705948235861,-405.9212378,0.00022888,2]
[312535464,1705948235872,-208.00921735,0.00022896,2]
[312535465,1705948235881,-550.45030194,0.00022896,2]
[312535467,1705948237646,-1713.53584685,0.00022896,2]
[312535468,1705948237655,-407.99616711,0.00022896,2]
[312535469,1705948237709,-52.23325532,0.00022896,2]
[312535470,1705948237718,-161.91377104,0.00022896,2]
[312535471,1705948237728,-517.34489861,0.00022896,2]
[312535472,1705948237737,-156.04897416,0.00022896,2]
[312535473,1705948237747,-1166.43702776,0.00022896,2]
[312535474,1705948237756,-770.70258642,0.00022896,2]
[312535475,1705948237766,-300.60047308,0.00022896,2]
[312535476,1705948237775,-207.78272895,0.00022897,2]
[312535477,1705948237785,-12263.08633756,0.00022898,2]
[312535478,1705948237821,-2415.82005601,0.00022898,2]
[312535479,1705948237845,-1453.02646349,0.00022898,2]
[312535480,1705948237857,-4248.55486038,0.00022898,2]
[312535481,1705948237869,-535.12680608,0.00022898,2]
[312535624,1705948240148,-224084.38547648,0.00022898,2]
[312535627,1705948240159,-151.55,0.00022903,2]
[312535629,1705948240170,-152.26973691,0.00022928,2]
[312535631,1705948240179,-151.55,0.00022966,2]
[312535633,1705948240189,-544.50637499,0.00023,2]
[312535635,1705948240198,-5153.67380886,0.00023,2]
[312535645,1705948240286,-151.55,0.0002303,2]
[312535647,1705948240295,-554.70281565,0.0002303,2]
[312535649,1705948240305,-554.70281565,0.00023045,2]
[312535651,1705948240316,-554.70281565,0.00023059,2]
[312535653,1705948240325,-176.0,0.00023079,2]
[312535655,1705948240334,-151.55,0.00023093,2]
[312535657,1705948240343,-661.45,0.00023145,2]
[312535659,1705948240352,-151.32,0.0002324,2]
[312535661,1705948240362,-782.95,0.00023676,2]
[312535663,1705948240371,-661.45,0.00023971,2]
[312535665,1705948240380,-159.86,0.00024256,2]
[312535667,1705948240389,-237.48,0.00024658,4]
[312535669,1705948240398,-250.0,0.00024658,2]
[312535671,1705948240409,-2536.95080883,0.00024658,4]
[312535711,1705948240767,-945.10919117,0.00024658,4]
[312535713,1705948240776,-209.88,0.00024681,2]
[312535715,1705948240786,-661.45,0.00024797,2]
[312535717,1705948240795,-152.26973691,0.00024917,2]
[312535719,1705948240804,-624.03501934,0.00025,2]
[312535721,1705948240813,-200.0,0.00025,2]
[312535723,1705948240823,-350.0,0.00025,3]
[312535725,1705948240832,-782.95,0.0002532,2]
[312535727,1705948240840,-661.45,0.00025623,2]
[312535729,1705948240849,-176.0,0.00025964,2]
[312535731,1705948240858,-2767.0,0.00026,2]
[312535733,1705948240867,-1627.0,0.000261,2]
[312535735,1705948240876,-159.86,0.00026538,2]
[312535737,1705948240885,-285.22,0.00026575,2]
[312535739,1705948240895,-213.92,0.00026575,2]
[312535741,1705948240903,-152.26973691,0.00026907,2]
[312535743,1705948240913,-209.88,0.00026945,2]
[312535745,1705948240922,-782.95,0.00026964,2]
[312535747,1705948240931,-400.0,0.00027,3]
[312535748,1705948240941,-296.68394195,0.00027395,3]
[312535750,1705948240950,-150.0,0.00027397,2]
[312535752,1705948240961,-158.68,0.00027397,2]
[312535754,1705948240973,-530.0,0.00027397,2]
[312535756,1705948240983,-4355.79,0.00027397,2]
[312535758,1705948240992,-33657.81,0.00027397,2]
[312535760,1705948241002,-28840.45,0.00027397,2]
[312535762,1705948241011,-1759.33,0.000274,2]
[312535764,1705948241020,-4355.79,0.00027556,2]
[312535766,1705948241030,-4355.79,0.00027714,2]
[312535768,1705948241038,-158.68,0.00027758,2]
[312535770,1705948241046,-4355.79,0.00027872,2]
[312535772,1705948241055,-200.0,0.00028,2]
[312535774,1705948241065,-4355.79,0.0002803,2]
[312535776,1705948241074,-158.68,0.00028118,2]
[312535778,1705948241083,-4355.79,0.00028189,2]
[312535780,1705948241093,-4355.79,0.00028347,2]
[312535782,1705948241102,-158.68,0.00028479,2]
[312535784,1705948241112,-4355.79,0.00028505,2]
[312535785,1705948241121,-164.35,0.00028545,2]
[312535786,1705948241130,-200.0,0.00028545,2]
[312535787,1705948241140,-300.81,0.00028603,2]
[312535788,1705948241150,-782.95,0.00028608,2]
[312535789,1705948241159,-4355.79,0.00028664,2]
[312535790,1705948241169,-159.86,0.00028819,2]
[312535791,1705948241178,-4355.79,0.00028822,2]
[312535792,1705948241187,-158.68,0.00028839,2]
[312535793,1705948241197,-176.0,0.00028849,2]
[312535794,1705948241207,-152.26973691,0.00028897,2]
[312535795,1705948241216,-450.0,0.00029,3]
[312535796,1705948241226,-158.68,0.000292,2]
[312535797,1705948241235,-209.88,0.00029209,2]
[312535798,1705948241244,-158.68,0.0002956,2]
[312535799,1705948241254,-300.81,0.00029614,2]
[312535800,1705948241263,-731.13762758,0.000298,2]
[312535801,1705948241272,-150.25811553,0.000299,2]
[312535802,1705948241281,-158.68,0.00029921,2]
[312535803,1705948241290,-1759.33,0.0002999,2]
[312535804,1705948241299,-1759.33,0.0002999,2]
[312535805,1705948241308,-1759.33,0.0002999,2]
[312535806,1705948241317,-6860.89000775,0.0003,4]
[312535807,1705948241328,-344.51925894,0.0003,4]
[312535808,1705948241337,-1807.84533026,0.0003,4]
[312535809,1705948241347,-905.41355492,0.0003,4]
[312535810,1705948241356,-19026.01005334,0.0003,4]
[312535811,1705948241365,-155.0,0.0003,2]
[312535812,1705948241375,-48291.1486885,0.0003,4]
[312535813,1705948241391,-582.17636691,0.0003,4]
[312535814,1705948241406,-612.185,0.0003,4]
[312535815,1705948241419,-2058.33535564,0.0003,4]
[312535835,1705948242662,-19387.23716297,0.0003,4]
[312535836,1705948242725,-1989.49372455,0.0003,4]
[312535837,1705948242735,-4110.20900627,0.0003,4]
[312535838,1705948242791,-4729.5425527,0.0003,4]
[312535839,1705948242801,-148266.20630228,0.0003,4]
[312535840,1705948242854,-439.16917918,0.0003,4]
[312535841,1705948242865,-1813.79317867,0.0003,4]
[312535846,1705948245588,-8199.02974078,0.0003,4]
[312535847,1705948245648,-533.81998308,0.0003,4]
[312535858,1705948409187,1303.04694334,0.00021002,2]
[312535859,1705948416016,2505.21442709,0.00021002,2]
[312535860,1705948421108,1051.17652227,0.00021002,2]
[312535861,1705948427300,2429.78304654,0.00021002,2]
[312535862,1705948431133,1303.04694334,0.0002,2]
[312535863,1705948434164,6077.73592096,0.00021002,2]
[312535864,1705948435682,265.0,0.00021002,2]
[312535865,1705948439768,17798.96190936,0.00021002,2]
[312535866,1705948453138,223.88463057,0.0002,2]
[312535867,1705948486526,2505.21442709,0.00021002,2]
[312535868,1705948505818,2429.78304654,0.00021002,2]
[312535869,1705948506526,230.73082258,0.00021002,2]
[312535870,1705948509367,155.0,0.00021002,2]
[312535871,1705948527342,4629.94558808,0.00021002,2]
[312535872,1705948532241,856.6984896,0.0002,2]
[312535873,1705948539067,371.50432901,0.00021002,2]
[312535874,1705948539880,759.56227356,0.00021002,2]
[312535875,1705948540388,447.8333954,0.00021002,2]
[312535876,1705948540801,312.8751174,0.0002,2]
[312535877,1705948541163,235.48067339,0.0002,2]
[312535878,1705948541300,1042.13133771,0.00021002,2]
[312535882,1705948550226,357.88786976,0.00021002,2]
[312535883,1705948551092,-1437.0,0.00021003,2]
[312535884,1705948551113,-155.84386628,0.00021009,2]
[312535885,1705948551133,-203.12390135,0.00021009,2]
[312535886,1705948551153,-1050.43856743,0.00021009,2]
[312535887,1705948551174,-158.8948,0.00021009,2]
[312535888,1705948551195,-230.54691082,0.00021009,2]
[312535889,1705948551215,-1265.91696724,0.00021009,2]
[312535890,1705948551234,-155.0,0.00021009,2]
[312535891,1705948551255,-4626.46488222,0.00021009,2]
[312535892,1705948551275,-2505.21442709,0.0002101,2]
[312535893,1705948551295,-21920.87912005,0.00021011,2]
[312535894,1705948551315,-282.89706329,0.00021013,2]
[312535895,1705948551334,-10473.6551094,0.00021013,2]
[312535896,1705948551353,-847.06410669,0.00021013,2]
[312535897,1705948577156,235.06304054,0.00021002,2]
[312535898,1705948581639,155.0,0.00021002,2]
[312535899,1705948599161,163.9972376,0.00021002,2]
[312535900,1705948599183,71.06580294,0.00021002,2]
[312535901,1705948603788,155.0,0.00021002,2]
[312535902,1705948615158,235.06304054,0.00021002,2]
[312535903,1705948617042,1097.74494293,0.00021002,2]
[312535904,1705948621674,155.0,0.00021002,2]
[312535905,1705948631162,235.06304054,0.00021002,2]
[312535906,1705948639640,155.0,0.00021002,2]
[312535907,1705948651171,234.61262024,0.00021002,2]
[312535908,1705948655642,220.09282609,0.00021002,2]
[312535909,1705948669211,234.5550209,0.00021002,2]
[312535910,1705948708122,1900.2453,0.00020908,2]
[312535911,1705948908545,175.32,0.00016712,2]
[312535912,1705949155029,794.5872773,0.00020938,2]
[312535913,1705949156214,177.01,0.00018315,2]
[312535914,1705949159966,794.58727728,0.00020986,2]
[312535916,1705949226111,-295.73068383,0.0002103,2]
[312535917,1705949226135,-6.33745244,0.00021031,2]
[312535922,1705949276236,4953.7137353,0.00020395,2]
[312535923,1705949280243,794.58727728,0.00020928,2]
[312535934,1705949333204,158.58624909,0.00020907,2]
[312535938,1705949364280,-295.73068383,0.00021018,2]
[312535939,1705949364306,-155.0,0.00021019,2]
[312535940,1705949364330,-174.40549592,0.00021019,2]
[312535941,1705949364746,-2579.08840316,0.00021019,2]
[312535942,1705949371239,432.2,0.00020776,2]
[312535954,1705949436660,-2024.8667851,0.00021014,2]
[312535965,1705949436719,-468.5188612,0.00021014,2]
[312535977,1705949436822,-580.09952,0.00021014,2]
[312535981,1705949437038,-119.38689587,0.00021014,2]
[312535982,1705949437048,-293.35999151,0.00021014,2]
[312535983,1705949437061,-17720.0,0.00021014,2]
[312535984,1705949437073,-538.89466019,0.00021014,2]
[312535987,1705949437085,-265.89405574,0.00021014,2]
[312535989,1705949437096,-5546.10385977,0.00021014,2]
[312535991,1705949437106,-1265.91696724,0.00021014,2]
[312535993,1705949437115,-2604.99968715,0.00021014,2]
[312535995,1705949437125,-1051.17652227,0.00021015,2]
[312535997,1705949437135,-4629.94558808,0.00021015,2]
[312535999,1705949437145,-1071.57950665,0.00021015,2]
[312536000,1705949437154,-171.60329861,0.00021016,2]
[312536003,1705949437164,-622.51303378,0.00021016,2]
[312536005,1705949437173,-230.73082258,0.00021016,2]
[312536007,1705949437182,-23115.43071387,0.00021016,2]
[312536010,1705949437194,-2020.71528,0.00021016,2]
[312536016,1705949437226,-300.31024141,0.00021016,2]
[312536047,1705949437814,-7961.24223606,0.00021016,2]
[312536049,1705949437824,-4639.84031702,0.00021017,2]
[312536051,1705949437835,-174.31747218,0.00021017,2]
[312536053,1705949437845,-155.0,0.00021017,2]
[312536055,1705949437855,-295.73068383,0.00021017,2]
[312536057,1705949437864,-150.0,0.00021025,2]
[312536059,1705949437874,-2146.45372253,0.00021026,2]
[312536061,1705949437884,-4087.01776027,0.00021026,2]
[312536063,1705949437895,-343.24758046,0.00021028,2]
[312536065,1705949437906,-159.62699243,0.00021038,2]
[312536067,1705949437916,-524.19831116,0.00021126,2]
[312536069,1705949437927,-3330.5550022,0.00021126,2]
[312536072,1705949437937,-248.83954256,0.00021126,2]
[312536074,1705949437948,-22618.4614423,0.00021127,2]
[312536076,1705949437957,-1178.76061238,0.0002134,2]
[312536078,1705949437966,-698.16216807,0.0002134,2]
[312536080,1705949437976,-272.92829241,0.0002134,2]
[312536082,1705949437985,-2333.44,0.0002134,2]
[312536083,1705949437995,-156.03680799,0.00022,2]
[312536085,1705949438004,-195.23777855,0.00022497,2]
[312536087,1705949438014,-350.9032776,0.00022499,2]
[312536090,1705949438026,-20.03353793,0.00022499,2]
[312536091,1705949438035,-587.87,0.00022499,2]
[312536093,1705949438044,-216.23469216,0.000225,2]
[312536095,1705949438054,-59.52806301,0.00022566,2]
[312536098,1705949438071,-563.2020703,0.00022566,2]
[312536099,1705949438085,-1494.54906669,0.00022566,2]
[312536100,1705949438094,-250.0,0.00022587,2]
[312536101,1705949438104,-194.71885722,0.00022603,2]
[312536102,1705949438114,-434.84,0.00022615,2]
[312536103,1705949438123,-150.0,0.00022616,2]
[312536104,1705949438133,-2478.67,0.0002263,2]
[312536105,1705949438143,-2017.12570753,0.00022666,2]
[312536106,1705949438155,-5248.9,0.00022666,2]
[312536107,1705949438168,-765.78429247,0.00022666,2]
[312536108,1705949438177,-1000.0,0.0002268,2]
[312536109,1705949438187,-694.97,0.00022691,2]
[312536110,1705949438197,-2358.41,0.00022694,2]
[312536111,1705949438206,-206.0684,0.00022698,2]
[312536112,1705949438217,-2000.0,0.0002273,2]
[312536113,1705949438226,-221.15744731,0.00022796,2]
[312536114,1705949438236,-4096.92792233,0.00022798,2]
[312536115,1705949438248,-2194.35077767,0.00022798,2]
[312536116,1705949438258,-302.44137143,0.00022825,2]
[312536117,1705949438267,-1658.00299899,0.00022826,2]
[312536118,1705949438277,-3831.29,0.00022894,2]
[312536119,1705949438286,-200.0,0.0002295,2]
[312536120,1705949438296,-176.4,0.00023011,2]
[312536121,1705949438305,-432.2,0.0002304,2]
[312536122,1705949438319,-210.0,0.00023128,2]
[312536124,1705949438328,-155.64,0.00023137,2]
[312536126,1705949438337,-159.62699238,0.00023143,2]
[312536128,1705949438347,-176.15,0.00023198,2]
[312536130,1705949438356,-200.0,0.0002324,2]
[312536132,1705949438365,-250.0,0.00023265,2]
[312536134,1705949438374,-500.0,0.0002329,2]
[312536136,1705949438384,-155.64,0.00023378,2]
[312536139,1705949438393,-8031.81,0.00023505,2]
[312536142,1705949438402,-155.64,0.00023619,2]